[Event "European Rapid Championship 2021"]
[Site "Katowice"]
[Date "2021.12.19"]
[Round "7.17"]
[White "Blohberger, Felix"]
[Black "Luberanski, Jakub"]
[Result "1-0"]
[ECO "D02"]
[WhiteElo "2409"]
[BlackElo "2199"]
[Annotator "NA"]
[PlyCount "77"]
[EventDate "2021.12.18"]
[EventType "swiss"]
[EventCountry "POL"]
[SourceTitle "playchess.com"]
[Source "ChessBase"]
[SourceQuality "1"]
[TimeControl "900+10"]

1. d4 {[%emt 0:00:03]} Nf6 {[%emt 0:00:01]} 2. Nf3 {[%emt 0:00:02]} d5 {
[%emt 0:00:02]} 3. Bf4 {[%emt 0:00:02]} e6 {[%emt 0:00:01]} 4. e3 {[%emt 0:00:
01]} c5 {[%emt 0:00:01]} 5. c3 {[%emt 0:00:01]} Bd6 {[%emt 0:00:02]} 6. Bb5+ {
[%emt 0:00:32]} Nc6 {[%emt 0:00:15]} 7. Bxc6+ {[%emt 0:00:17]} bxc6 {[%emt 0:
00:02]} 8. Bxd6 {[%emt 0:00:06]} Qxd6 {[%emt 0:00:01]} 9. Qa4 {[%emt 0:00:01]}
cxd4 {[%emt 0:02:38]} 10. cxd4 {[%emt 0:00:03]} O-O {[%emt 0:00:04]} 11. O-O {
[%emt 0:00:04]} c5 {[%emt 0:00:37]} 12. Qa3 {[%emt 0:00:01]} Ne4 {[%emt 0:00:
01]} 13. Nc3 {[%emt 0:01:58]} cxd4 {[%emt 0:00:12]} 14. Qxd6 {[%emt 0:00:02]}
Nxd6 {[%emt 0:00:01]} 15. Nxd4 {[%emt 0:00:04]} Ba6 {[%emt 0:00:17]} 16. Rfc1 {
[%emt 0:00:56]} Rfc8 {[%emt 0:00:02]} 17. Na4 {[%emt 0:01:20]} Bd3 {[%emt 0:09:
00]} 18. b3 {[%emt 0:00:24]} Bg6 {[%emt 0:00:25]} 19. Kf1 {[%emt 0:01:02]} Kf8
{[%emt 0:00:02]} 20. Ke1 {[%emt 0:00:01]} Ke8 {[%emt 0:00:16]} 21. f3 {[%emt 0:
01:07]} Rxc1+ {[%emt 0:00:47]} 22. Rxc1 {[%emt 0:00:01]} Rc8 {[%emt 0:00:02]}
23. Rc6 {[%emt 0:00:52]} Rxc6 {[%emt 0:00:14]} 24. Nxc6 {[%emt 0:00:01]} Nc8 {
[%emt 0:00:03]} 25. Nc5 {[%emt 0:00:02]} h5 {[%emt 0:00:54]} 26. g3 {[%emt 0:
01:12]} Bf5 {[%emt 0:00:03]} 27. Kd2 {[%emt 0:00:16]} Bh3 {[%emt 0:00:25]} 28.
a4 {[%emt 0:01:35]} g5 {[%emt 0:01:45]} 29. b4 {[%emt 0:01:24]} f6 {[%emt 0:00:
03]} 30. f4 {[%emt 0:00:01]} gxf4 {[%emt 0:00:09]} 31. gxf4 {[%emt 0:00:08]} h4
{[%emt 0:00:47]} 32. b5 {[%emt 0:00:12]} Kf7 {[%emt 0:00:12]} 33. Ke1 {[%emt 0:
03:46]} Bf5 {[%emt 0:00:30]} 34. a5 {[%emt 0:00:09]} h3 {[%emt 0:00:36]} 35.
Nxa7 {[%emt 0:01:02]} Nxa7 {[%emt 0:00:01]} 36. b6 {[%emt 0:00:01]} Nc6 {
[%emt 0:00:17]} 37. a6 {[%emt 0:00:01]} e5 {[%emt 0:00:15]} 38. a7 {[%emt 0:00:
03]} Nxa7 {[%emt 0:00:02]} 39. bxa7 {[%emt 0:00:01]} 1-0

[Event "European Rapid Championship 2021"]
[Site "Katowice"]
[Date "2021.12.19"]
[Round "7.17"]
[White "Fus, Jakub"]
[Black "Czernek, Tymon"]
[Result "1-0"]
[ECO "B20"]
[WhiteElo "2252"]
[BlackElo "2197"]
[Annotator "NA"]
[PlyCount "81"]
[EventDate "2021.12.18"]
[EventType "swiss"]
[EventCountry "POL"]
[SourceTitle "playchess.com"]
[Source "ChessBase"]
[SourceQuality "1"]
[TimeControl "900+10"]

1. e4 {[%emt 0:06:49]} c5 {[%emt 0:00:01]} 2. Be2 {[%emt 0:00:01]} d6 {[%emt 0:
00:07]} 3. f4 {[%emt 0:00:02]} Nf6 {[%emt 0:00:21]} 4. d3 {[%emt 0:00:01]} e6 {
[%emt 0:00:13]} 5. Nf3 {[%emt 0:00:03]} Be7 {[%emt 0:00:02]} 6. O-O {[%emt 0:
00:02]} O-O {[%emt 0:00:02]} 7. Kh1 {[%emt 0:00:42]} Nc6 {[%emt 0:00:04]} 8.
Be3 {[%emt 0:00:02]} d5 {[%emt 0:01:30]} 9. Nbd2 {[%emt 0:00:27]} dxe4 {
[%emt 0:00:27]} 10. dxe4 {[%emt 0:00:03]} b6 {[%emt 0:00:03]} 11. c3 {[%emt 0:
00:08]} Bb7 {[%emt 0:00:05]} 12. Qc2 {[%emt 0:00:39]} Qc7 {[%emt 0:01:05]} 13.
Ng5 {[%emt 0:00:20]} e5 {[%emt 0:00:57]} 14. f5 {[%emt 0:00:34]} Rfd8 {[%emt 0:
01:25]} 15. Rae1 {[%emt 0:00:48]} Na5 {[%emt 0:00:40]} 16. Bf3 {[%emt 0:01:13]}
Ba6 {[%emt 0:01:02]} 17. Rg1 {[%emt 0:00:01]} Bd3 {[%emt 0:00:42]} 18. Qc1 {
[%emt 0:00:02]} c4 {[%emt 0:00:03]} 19. Nh3 {[%emt 0:00:12]} Nb7 {[%emt 0:01:
08]} 20. Nf2 {[%emt 0:00:05]} Bc5 {[%emt 0:00:20]} 21. g4 {[%emt 0:00:32]} b5 {
[%emt 0:00:50]} 22. g5 {[%emt 0:00:48]} Ne8 {[%emt 0:00:01]} 23. Ng4 {[%emt 0:
00:07]} g6 {[%emt 0:00:34]} 24. Nf1 {[%emt 0:00:56]} Bxf1 {[%emt 0:01:54]} 25.
Rgxf1 {[%emt 0:00:06]} Rd3 {[%emt 0:00:50]} 26. Be2 {[%emt 0:00:51]} Bxe3 {
[%emt 0:00:22]} 27. Nxe3 {[%emt 0:00:02]} Nc5 {[%emt 0:00:01]} 28. Bxd3 {
[%emt 0:00:09]} Nxd3 {[%emt 0:00:09]} 29. Qd2 {[%emt 0:00:02]} Rd8 {[%emt 0:00:
43]} 30. Rd1 {[%emt 0:00:22]} Nd6 {[%emt 0:00:21]} 31. Nd5 {[%emt 0:00:27]} Qb7
{[%emt 0:00:04]} 32. Nf6+ {[%emt 0:00:06]} Kh8 {[%emt 0:01:07]} 33. Qg2 {
[%emt 0:00:02]} Ne8 {[%emt 0:00:01]} 34. Nd5 {[%emt 0:00:15]} gxf5 {[%emt 0:01:
00]} 35. Rxf5 {[%emt 0:00:35]} Nd6 {[%emt 0:00:16]} 36. Rdf1 {[%emt 0:00:24]}
Nxf5 {[%emt 0:00:25]} 37. Rxf5 {[%emt 0:00:01]} Nf4 {[%emt 0:00:23]} 38. Qf3 {
[%emt 0:00:17]} Nxd5 {[%emt 0:00:28]} 39. Rxf7 {[%emt 0:00:02]} Qc8 {[%emt 0:
01:40]} 40. Qh5 {[%emt 0:00:27]} Nf6 {[%emt 0:00:09]} 41. gxf6 {[%emt 0:00:01]}
1-0

[Event "European Rapid Championship 2021"]
[Site "Katowice"]
[Date "2021.12.19"]
[Round "7.18"]
[White "Molenda, Marcin"]
[Black "Vidruska, Renate"]
[Result "1-0"]
[ECO "E11"]
[WhiteElo "2365"]
[BlackElo "1993"]
[Annotator "NA"]
[PlyCount "101"]
[EventDate "2021.12.18"]
[EventType "swiss"]
[EventCountry "POL"]
[SourceTitle "playchess.com"]
[Source "ChessBase"]
[SourceQuality "1"]
[TimeControl "900+10"]

1. d4 {[%emt 0:00:02]} Nf6 {[%emt 0:01:11]} 2. c4 {[%emt 0:00:03]} e6 {[%emt 0:
00:01]} 3. Nf3 {[%emt 0:00:04]} Bb4+ {[%emt 0:00:03]} 4. Bd2 {[%emt 0:00:02]}
c5 {[%emt 0:00:03]} 5. Bxb4 {[%emt 0:00:14]} cxb4 {[%emt 0:00:01]} 6. a3 {
[%emt 0:00:03]} bxa3 {[%emt 0:00:07]} 7. Rxa3 {[%emt 0:00:02]} Na6 {[%emt 0:02:
24]} 8. Nc3 {[%emt 0:00:13]} O-O {[%emt 0:00:13]} 9. e4 {[%emt 0:00:04]} d6 {
[%emt 0:00:01]} 10. Bd3 {[%emt 0:00:17]} e5 {[%emt 0:01:14]} 11. d5 {[%emt 0:
00:12]} Nb4 {[%emt 0:00:24]} 12. Be2 {[%emt 0:00:18]} a5 {[%emt 0:01:10]} 13.
O-O {[%emt 0:00:03]} Bg4 {[%emt 0:00:02]} 14. Ne1 {[%emt 0:00:20]} Bxe2 {
[%emt 0:00:33]} 15. Qxe2 {[%emt 0:00:02]} Re8 {[%emt 0:00:14]} 16. Nd3 {
[%emt 0:00:16]} Na6 {[%emt 0:00:54]} 17. Rfa1 {[%emt 0:00:13]} b6 {[%emt 0:01:
38]} 18. b4 {[%emt 0:00:57]} axb4 {[%emt 0:00:03]} 19. Nxb4 Nc7 20. Nc6 {
[%emt 0:00:11]} Qd7 {[%emt 0:00:13]} 21. f3 {[%emt 0:00:38]} Rxa3 {[%emt 0:01:
26]} 22. Rxa3 {[%emt 0:00:02]} Ra8 {[%emt 0:00:01]} 23. Qa2 {[%emt 0:00:32]}
Qe8 {[%emt 0:00:02]} 24. Rxa8 {[%emt 0:02:18]} Qxa8 {[%emt 0:00:02]} 25. Qxa8+
{[%emt 0:00:02]} Nxa8 {[%emt 0:00:01]} 26. Nb5 {[%emt 0:00:01]} Ne8 {[%emt 0:
00:05]} 27. Ne7+ {[%emt 0:00:05]} Kf8 {[%emt 0:00:08]} 28. Nc8 {[%emt 0:00:02]}
g6 {[%emt 0:00:12]} 29. g4 {[%emt 0:00:40]} Nf6 {[%emt 0:01:56]} 30. Kf2 {
[%emt 0:00:42]} h5 {[%emt 0:00:06]} 31. g5 {[%emt 0:01:13]} Nh7 {[%emt 0:00:19]
} 32. h4 {[%emt 0:00:08]} f6 {[%emt 0:00:01]} 33. gxf6 {[%emt 0:00:05]} Kf7 {
[%emt 0:00:29]} 34. Kg3 {[%emt 0:01:03]} Kxf6 {[%emt 0:00:09]} 35. f4 {[%emt 0:
00:37]} exf4+ {[%emt 0:00:11]} 36. Kxf4 {[%emt 0:00:01]} g5+ {[%emt 0:00:11]}
37. hxg5+ {[%emt 0:00:02]} Nxg5 {[%emt 0:00:01]} 38. Ncxd6 {[%emt 0:00:03]}
Nh3+ {[%emt 0:00:47]} 39. Ke3 {[%emt 0:00:37]} Ke5 {[%emt 0:00:28]} 40. Nf7+ {
[%emt 0:02:29]} Kf6 {[%emt 0:00:02]} 41. Nd8 {[%emt 0:00:02]} Ng5 {[%emt 0:00:
21]} 42. Nc6 {[%emt 0:00:07]} Nf7 {[%emt 0:00:20]} 43. Kf4 {[%emt 0:00:02]} h4
{[%emt 0:00:25]} 44. e5+ {[%emt 0:00:02]} Kg7 {[%emt 0:02:05]} 45. e6 {[%emt 0:
00:17]} Nh8 {[%emt 0:00:02]} 46. e7 {[%emt 0:00:12]} Ng6+ {[%emt 0:00:07]} 47.
Kg4 {[%emt 0:00:01]} Nxe7 {[%emt 0:00:54]} 48. Nxe7 {[%emt 0:00:02]} Kf7 {
[%emt 0:00:01]} 49. Nc6 {[%emt 0:00:05]} Ke8 {[%emt 0:00:18]} 50. Kxh4 {
[%emt 0:00:03]} Kd7 {[%emt 0:00:01]} 51. Kg4 {[%emt 0:00:02]} 1-0

[Event "European Rapid Championship 2021"]
[Site "Katowice"]
[Date "2021.12.19"]
[Round "7.18"]
[White "Kukula, Pawel"]
[Black "Gretarsson, Helgi Ass"]
[Result "0-1"]
[ECO "B07"]
[WhiteElo "2088"]
[BlackElo "2476"]
[Annotator "ChessBase"]
[PlyCount "30"]
[EventDate "2021.12.18"]
[EventType "swiss"]
[EventCountry "POL"]
[SourceTitle "playchess.com"]
[Source "ChessBase"]
[SourceQuality "1"]
[TimeControl "900+10"]

1. e4 {[%emt 0:00:03]} d6 {[%emt 0:00:01]} 2. d4 {[%emt 0:00:03]} Nf6 {[%emt 0:
00:02]} 3. Nc3 {[%emt 0:00:03]} Nbd7 {[%emt 0:00:02]} 4. f4 {[%emt 0:00:05]} e5
{[%emt 0:00:04]} 5. Nf3 {[%emt 0:00:03]} exd4 {[%emt 0:00:17]} 6. Qxd4 {
[%emt 0:00:08]} c6 {[%emt 0:00:02]} 7. Be3 {[%emt 0:00:15]} d5 {[%emt 0:00:16]}
8. exd5 {[%emt 0:00:30]} Bc5 {[%emt 0:00:08]} 9. Qd2 {[%emt 0:00:02]} Qe7 {
[%emt 0:00:06]} 10. Ne5 {[%emt 0:02:35]} Nxe5 {[%emt 0:00:11]} 11. fxe5 {
[%emt 0:02:27]} Qxe5 {[%emt 0:00:03]} 12. Nd1 {[%emt 0:00:07]} Nxd5 {[%emt 0:
02:02]} 13. Kf2 {[%emt 0:00:59]} Qf4+ {[%emt 0:00:02]} 14. Ke2 {[%emt 0:00:01]}
Bg4+ {[%emt 0:00:02]} 15. Kd3 {[%emt 0:00:04]} Nxe3 {[%emt 0:00:02]} 0-1

[Event "European Rapid Championship 2021"]
[Site "Katowice"]
[Date "2021.12.19"]
[Round "7.19"]
[White "Sanz Wawer, Daniel"]
[Black "Fridman, Daniel"]
[Result "0-1"]
[ECO "B14"]
[WhiteElo "2371"]
[BlackElo "2626"]
[Annotator "ChessBase"]
[PlyCount "112"]
[EventDate "2021.12.18"]
[EventType "swiss"]
[EventCountry "POL"]
[SourceTitle "playchess.com"]
[Source "ChessBase"]
[SourceQuality "1"]
[TimeControl "900+10"]

1. d4 {[%emt 0:00:03]} d5 {[%emt 0:00:01]} 2. c4 {[%emt 0:00:02]} e6 {[%emt 0:
00:02]} 3. Nc3 {[%emt 0:00:02]} c5 {[%emt 0:00:01]} 4. e3 {[%emt 0:00:17]} cxd4
{[%emt 0:00:03]} 5. exd4 {[%emt 0:00:02]} Nf6 {[%emt 0:00:01]} 6. Nf3 {[%emt 0:
00:03]} Nc6 {[%emt 0:00:03]} 7. cxd5 {[%emt 0:01:23]} Nxd5 {[%emt 0:00:02]} 8.
Bd3 {[%emt 0:00:06]} Bb4 {[%emt 0:00:16]} 9. Bd2 {[%emt 0:00:02]} Be7 {[%emt 0:
00:01]} 10. a3 {[%emt 0:01:37]} Nf6 {[%emt 0:00:05]} 11. Bg5 {[%emt 0:00:28]}
h6 {[%emt 0:00:02]} 12. Bh4 {[%emt 0:00:59]} O-O {[%emt 0:02:23]} 13. O-O {
[%emt 0:00:06]} b6 {[%emt 0:00:02]} 14. Rc1 {[%emt 0:00:20]} Bb7 {[%emt 0:00:
02]} 15. Bb1 {[%emt 0:00:05]} Nh5 {[%emt 0:00:32]} 16. Qd3 {[%emt 0:02:04]} g6
{[%emt 0:00:02]} 17. Bxe7 {[%emt 0:00:16]} Nxe7 {[%emt 0:00:02]} 18. Ne4 {
[%emt 0:00:29]} Nd5 {[%emt 0:01:18]} 19. Rfd1 {[%emt 0:01:20]} Nhf6 {[%emt 0:
01:09]} 20. Nc3 {[%emt 0:00:56]} Nf4 {[%emt 0:00:21]} 21. Qe3 {[%emt 0:00:12]}
Qb8 {[%emt 0:00:37]} 22. Ne5 {[%emt 0:01:21]} g5 {[%emt 0:01:11]} 23. f3 {
[%emt 0:01:10]} Qd8 {[%emt 0:00:59]} 24. Ne4 {[%emt 0:00:52]} N6d5 {[%emt 0:00:
49]} 25. Qd2 {[%emt 0:00:21]} f6 {[%emt 0:00:27]} 26. Nc4 {[%emt 0:00:02]} f5 {
[%emt 0:00:59]} 27. Nc3 {[%emt 0:00:54]} Nxc3 {[%emt 0:01:25]} 28. bxc3 {
[%emt 0:00:07]} Qe7 {[%emt 0:00:48]} 29. Re1 {[%emt 0:00:54]} Rac8 {[%emt 0:00:
02]} 30. Ba2 {[%emt 0:00:15]} Bd5 {[%emt 0:02:31]} 31. Ne5 {[%emt 0:00:01]}
Qxa3 {[%emt 0:00:02]} 32. Bxd5 {[%emt 0:00:07]} Nxd5 {[%emt 0:00:03]} 33. c4 {
[%emt 0:00:44]} Nf4 {[%emt 0:00:47]} 34. g3 {[%emt 0:00:14]} Nh5 {[%emt 0:00:
02]} 35. Ra1 {[%emt 0:00:22]} Qd6 {[%emt 0:00:34]} 36. Rxa7 {[%emt 0:00:21]}
Rc7 {[%emt 0:00:06]} 37. Rxc7 {[%emt 0:00:51]} Qxc7 {[%emt 0:00:01]} 38. Kg2 {
[%emt 0:00:02]} Rd8 {[%emt 0:00:18]} 39. h4 {[%emt 0:00:30]} Qg7 {[%emt 0:00:
40]} 40. hxg5 {[%emt 0:00:02]} hxg5 {[%emt 0:00:31]} 41. Rh1 {[%emt 0:00:36]}
Nxg3 {[%emt 0:00:23]} 42. Nc6 {[%emt 0:00:50]} Rd6 {[%emt 0:00:41]} 43. Kxg3 {
[%emt 0:00:19]} Rxc6 {[%emt 0:00:05]} 44. Rh5 {[%emt 0:00:07]} Kf8 {[%emt 0:00:
27]} 45. Rxg5 {[%emt 0:00:22]} Qc7+ {[%emt 0:00:01]} 46. f4 {[%emt 0:00:18]}
Rxc4 {[%emt 0:00:02]} 47. Qg2 {[%emt 0:00:11]} Rc3+ {[%emt 0:00:08]} 48. Kh4 {
[%emt 0:00:07]} Qxf4+ {[%emt 0:00:03]} 49. Kh5 {[%emt 0:00:01]} Qf3+ {[%emt 0:
00:04]} 50. Kg6 {[%emt 0:00:16]} Qxg2 51. Rxg2 {[%emt 0:00:01]} Ke7 {[%emt 0:
00:05]} 52. d5 {[%emt 0:00:21]} f4 {[%emt 0:00:10]} 53. Re2 {[%emt 0:00:16]}
Re3 {[%emt 0:00:03]} 54. Rd2 {[%emt 0:00:02]} Rg3+ {[%emt 0:00:10]} 55. Kh5 {
[%emt 0:00:02]} e5 {[%emt 0:00:06]} 56. Rb2 {[%emt 0:00:09]} Kd6 {[%emt 0:00:
04]} 0-1

[Event "European Rapid Championship 2021"]
[Site "Katowice"]
[Date "2021.12.19"]
[Round "7.19"]
[White "Kulon, Klaudia"]
[Black "Zgadzaj, Rafal"]
[Result "1-0"]
[ECO "A13"]
[WhiteElo "2328"]
[BlackElo "2087"]
[Annotator "NA"]
[PlyCount "80"]
[EventDate "2021.12.18"]
[EventType "swiss"]
[EventCountry "POL"]
[SourceTitle "playchess.com"]
[Source "ChessBase"]
[SourceQuality "1"]
[TimeControl "900+10"]

1. c4 {[%emt 0:00:02]} e6 {[%emt 0:00:04]} 2. g3 {[%emt 0:00:02]} f5 {[%emt 0:
00:04]} 3. Bg2 {[%emt 0:00:01]} Nf6 {[%emt 0:00:02]} 4. Nc3 {[%emt 0:00:02]}
Be7 {[%emt 0:00:12]} 5. d3 {[%emt 0:00:08]} O-O {[%emt 0:00:07]} 6. e4 {
[%emt 0:00:04]} d6 {[%emt 0:00:25]} 7. Nge2 {[%emt 0:00:12]} Nc6 {[%emt 0:00:
15]} 8. O-O {[%emt 0:00:07]} Qe8 {[%emt 0:01:11]} 9. exf5 {[%emt 0:00:29]} exf5
{[%emt 0:00:04]} 10. Nf4 {[%emt 0:00:07]} Kh8 {[%emt 0:02:41]} 11. Re1 {
[%emt 0:00:24]} Qf7 {[%emt 0:00:29]} 12. Ncd5 {[%emt 0:02:02]} Bd8 {[%emt 0:00:
41]} 13. Rb1 {[%emt 0:00:35]} Nd4 {[%emt 0:01:55]} 14. b4 {[%emt 0:00:28]} c6 {
[%emt 0:00:36]} 15. Nxf6 {[%emt 0:00:17]} Bxf6 {[%emt 0:00:02]} 16. Bb2 {
[%emt 0:00:05]} Bd7 {[%emt 0:01:42]} 17. Nh5 {[%emt 0:02:25]} Rae8 {[%emt 0:00:
01]} 18. Nxf6 {[%emt 0:00:13]} Qxf6 {[%emt 0:00:08]} 19. Qd2 {[%emt 0:00:06]}
b6 {[%emt 0:00:30]} 20. c5 {[%emt 0:04:44]} f4 {[%emt 0:03:58]} 21. Qxf4 {
[%emt 0:00:59]} Qxf4 {[%emt 0:00:22]} 22. gxf4 {[%emt 0:00:03]} dxc5 {[%emt 0:
00:10]} 23. bxc5 {[%emt 0:00:09]} Ne2+ {[%emt 0:00:12]} 24. Kh1 {[%emt 0:00:31]
} Nxf4 {[%emt 0:00:04]} 25. cxb6 {[%emt 0:00:15]} axb6 {[%emt 0:00:05]} 26. Be4
{[%emt 0:00:02]} Nh3 {[%emt 0:01:14]} 27. Bd4 {[%emt 0:01:08]} c5 {[%emt 0:00:
19]} 28. Be3 {[%emt 0:00:41]} Nxf2+ {[%emt 0:00:01]} 29. Kg2 {[%emt 0:00:38]}
Nxe4 {[%emt 0:00:20]} 30. dxe4 {[%emt 0:00:01]} Rxe4 {[%emt 0:00:26]} 31. Rxb6
{[%emt 0:00:02]} Rg4+ {[%emt 0:00:07]} 32. Kh1 {[%emt 0:00:23]} Bf5 {[%emt 0:
00:41]} 33. h4 {[%emt 0:00:36]} Be4+ {[%emt 0:00:51]} 34. Kh2 {[%emt 0:00:00]}
Rg2+ {[%emt 0:00:16]} 35. Kh3 {[%emt 0:00:01]} Rxa2 {[%emt 0:00:13]} 36. Bf4 {
[%emt 0:00:41]} Bf5+ {[%emt 0:00:23]} 37. Kg3 {[%emt 0:00:01]} h5 {[%emt 0:00:
15]} 38. Re3 {[%emt 0:00:01]} c4 {[%emt 0:00:10]} 39. Rc6 {[%emt 0:00:10]} Rc2
{[%emt 0:00:06]} 40. Rc7 {[%emt 0:00:05]} Rd2 1-0

[Event "European Rapid Championship 2021"]
[Site "Katowice"]
[Date "2021.12.19"]
[Round "7.20"]
[White "Pultinevicius, Paulius"]
[Black "Przybylski, Wojciech"]
[Result "1-0"]
[ECO "D12"]
[WhiteElo "2536"]
[BlackElo "2321"]
[Annotator "ChessBase"]
[PlyCount "115"]
[EventDate "2021.12.18"]
[EventType "swiss"]
[EventCountry "POL"]
[SourceTitle "playchess.com"]
[Source "ChessBase"]
[SourceQuality "1"]
[TimeControl "900+10"]

1. d4 {[%emt 0:00:01]} Nf6 {[%emt 0:00:08]} 2. c4 {[%emt 0:00:01]} c6 {[%emt 0:
00:02]} 3. Nf3 {[%emt 0:00:02]} d5 {[%emt 0:00:03]} 4. e3 {[%emt 0:00:01]} Bf5
{[%emt 0:00:06]} 5. Nc3 {[%emt 0:00:18]} e6 {[%emt 0:00:04]} 6. Nh4 {[%emt 0:
00:04]} Bg6 {[%emt 0:00:52]} 7. Qb3 {[%emt 0:00:51]} Qc7 {[%emt 0:00:47]} 8.
Nxg6 {[%emt 0:01:02]} hxg6 {[%emt 0:00:02]} 9. g3 {[%emt 0:00:01]} Nbd7 {
[%emt 0:00:29]} 10. Bg2 {[%emt 0:00:07]} Be7 {[%emt 0:00:47]} 11. O-O {[%emt 0:
02:23]} O-O {[%emt 0:01:10]} 12. e4 {[%emt 0:02:06]} dxe4 {[%emt 0:03:51]} 13.
Nxe4 {[%emt 0:02:27]} Nxe4 {[%emt 0:00:26]} 14. Bxe4 {[%emt 0:00:03]} e5 {
[%emt 0:00:01]} 15. dxe5 {[%emt 0:00:04]} Nc5 {[%emt 0:01:23]} 16. Qc2 {
[%emt 0:00:43]} Qxe5 {[%emt 0:00:03]} 17. Bg2 {[%emt 0:00:43]} Bf6 {[%emt 0:00:
05]} 18. Be3 {[%emt 0:00:18]} Ne6 {[%emt 0:00:17]} 19. Rad1 {[%emt 0:00:17]}
Rfd8 {[%emt 0:01:05]} 20. Rxd8+ {[%emt 0:02:23]} Rxd8 {[%emt 0:00:10]} 21. b4 {
[%emt 0:01:19]} Nd4 {[%emt 0:02:24]} 22. Qa4 {[%emt 0:00:01]} a6 {[%emt 0:00:
08]} 23. Kh1 {[%emt 0:00:22]} Qe6 {[%emt 0:00:06]} 24. c5 {[%emt 0:00:44]} Nb5
{[%emt 0:00:53]} 25. Qc2 {[%emt 0:00:07]} Nd4 {[%emt 0:00:31]} 26. Qb1 {
[%emt 0:00:11]} Nf5 {[%emt 0:00:08]} 27. Bf4 {[%emt 0:00:04]} Qc4 {[%emt 0:00:
35]} 28. Re1 {[%emt 0:00:34]} Qd4 {[%emt 0:00:49]} 29. Kg1 {[%emt 0:00:08]} a5
{[%emt 0:00:30]} 30. Bc7 {[%emt 0:00:24]} Rc8 {[%emt 0:01:12]} 31. Bxa5 {
[%emt 0:00:05]} Qc4 {[%emt 0:00:04]} 32. Bh3 {[%emt 0:00:25]} Rf8 {[%emt 0:00:
58]} 33. Rc1 {[%emt 0:00:47]} Qd5 {[%emt 0:00:11]} 34. Bg2 {[%emt 0:00:02]} Qd2
{[%emt 0:00:17]} 35. Rd1 {[%emt 0:00:03]} Qe2 {[%emt 0:00:02]} 36. Bf1 {
[%emt 0:00:53]} Qe6 {[%emt 0:00:08]} 37. Re1 {[%emt 0:00:06]} Qd5 {[%emt 0:00:
01]} 38. Bg2 {[%emt 0:00:39]} Qc4 {[%emt 0:00:01]} 39. Re4 {[%emt 0:00:13]} Qc3
{[%emt 0:00:08]} 40. Qe1 {[%emt 0:00:09]} Qa3 {[%emt 0:00:05]} 41. Qd2 {
[%emt 0:00:04]} Bc3 {[%emt 0:00:17]} 42. Qc2 {[%emt 0:00:18]} Bf6 {[%emt 0:00:
29]} 43. Qc4 {[%emt 0:00:28]} Qb2 {[%emt 0:00:05]} 44. Bf1 {[%emt 0:00:14]} Nd4
{[%emt 0:00:02]} 45. Kg2 {[%emt 0:00:05]} g5 {[%emt 0:00:07]} 46. h3 {[%emt 0:
00:01]} Ne6 {[%emt 0:00:29]} 47. Bd3 {[%emt 0:00:08]} Nd4 {[%emt 0:00:04]} 48.
Bc7 {[%emt 0:00:21]} Nb5 {[%emt 0:00:14]} 49. Re2 {[%emt 0:00:08]} Qc3 {
[%emt 0:00:19]} 50. Qe4 {[%emt 0:00:10]} g6 {[%emt 0:00:05]} 51. Bxb5 {[%emt 0:
00:02]} cxb5 {[%emt 0:00:02]} 52. Bd6 {[%emt 0:00:03]} Rd8 {[%emt 0:00:09]} 53.
Re3 {[%emt 0:00:02]} Qc4 {[%emt 0:00:16]} 54. Qxb7 {[%emt 0:00:10]} Qxb4 {
[%emt 0:00:05]} 55. Rf3 {[%emt 0:00:02]} Qb2 {[%emt 0:00:23]} 56. c6 {[%emt 0:
00:17]} Rxd6 {[%emt 0:00:05]} 57. c7 {[%emt 0:00:01]} Rd8 {[%emt 0:00:11]} 58.
cxd8=Q+ {[%emt 0:00:06]} 1-0

[Event "European Rapid Championship 2021"]
[Site "Katowice"]
[Date "2021.12.19"]
[Round "7.20"]
[White "Szente Varga, Fruzsina"]
[Black "Golubovskis, Maksims"]
[Result "0-1"]
[ECO "B30"]
[WhiteElo "1984"]
[BlackElo "2210"]
[Annotator "NA"]
[PlyCount "88"]
[EventDate "2021.12.18"]
[EventType "swiss"]
[EventCountry "POL"]
[SourceTitle "playchess.com"]
[Source "ChessBase"]
[SourceQuality "1"]
[TimeControl "900+10"]

1. e4 {[%emt 0:00:02]} c5 {[%emt 0:00:28]} 2. Nf3 {[%emt 0:00:02]} Nc6 {
[%emt 0:00:01]} 3. b3 {[%emt 0:00:05]} g6 {[%emt 0:00:26]} 4. Bb2 {[%emt 0:00:
02]} Nf6 {[%emt 0:00:01]} 5. e5 {[%emt 0:00:17]} Nd5 {[%emt 0:00:01]} 6. Bb5 {
[%emt 0:00:23]} Bg7 {[%emt 0:00:05]} 7. O-O {[%emt 0:00:10]} O-O {[%emt 0:00:
02]} 8. d3 {[%emt 0:01:27]} Nc7 {[%emt 0:01:30]} 9. Bxc6 {[%emt 0:00:08]} dxc6
{[%emt 0:00:05]} 10. Nbd2 {[%emt 0:02:25]} Bf5 {[%emt 0:00:20]} 11. Nh4 {
[%emt 0:01:33]} Be6 {[%emt 0:00:01]} 12. Ne4 {[%emt 0:01:20]} b6 {[%emt 0:00:
00]} 13. f4 {[%emt 0:01:42]} Bd5 {[%emt 0:02:04]} 14. f5 {[%emt 0:01:34]} Bxe4
{[%emt 0:03:05]} 15. dxe4 {[%emt 0:00:02]} Qxd1 {[%emt 0:01:41]} 16. Raxd1 {
[%emt 0:00:01]} Rad8 {[%emt 0:00:05]} 17. c4 {[%emt 0:02:07]} Na6 {[%emt 0:01:
52]} 18. a3 {[%emt 0:00:01]} b5 {[%emt 0:00:13]} 19. cxb5 {[%emt 0:02:12]} cxb5
{[%emt 0:00:01]} 20. Nf3 {[%emt 0:00:46]} Bh6 {[%emt 0:01:20]} 21. Kf2 {
[%emt 0:00:01]} c4 {[%emt 0:00:19]} 22. b4 {[%emt 0:01:05]} Nb8 {[%emt 0:02:26]
} 23. Nd4 {[%emt 0:00:14]} a6 {[%emt 0:00:08]} 24. Kf3 {[%emt 0:00:21]} Rc8 {
[%emt 0:00:23]} 25. Bc3 {[%emt 0:00:08]} Rfd8 {[%emt 0:00:08]} 26. e6 {[%emt 0:
00:19]} Bg7 {[%emt 0:00:42]} 27. exf7+ Kxf7 {[%emt 0:00:01]} 28. g4 {[%emt 0:
00:40]} Bxd4 {[%emt 0:01:07]} 29. Rxd4 {[%emt 0:00:25]} Nc6 {[%emt 0:00:00]}
30. Rdd1 {[%emt 0:00:01]} e5 31. Ke3 {[%emt 0:00:22]} g5 {[%emt 0:00:56]} 32.
Rd5 {[%emt 0:00:04]} Ne7 {[%emt 0:00:02]} 33. Rdd1 {[%emt 0:00:21]} Kf6 {
[%emt 0:00:29]} 34. h4 {[%emt 0:00:03]} gxh4 {[%emt 0:00:08]} 35. g5+ {[%emt 0:
00:04]} Kxg5 {[%emt 0:00:04]} 36. Bxe5 {[%emt 0:00:01]} Rxd1 {[%emt 0:00:14]}
37. Rxd1 {[%emt 0:00:00]} c3 {[%emt 0:00:29]} 38. Rg1+ {[%emt 0:00:03]} Kh5 {
[%emt 0:00:00]} 39. Kf4 {[%emt 0:00:05]} h6 {[%emt 0:00:24]} 40. Bf6 {[%emt 0:
00:05]} Ng8 {[%emt 0:00:03]} 41. Bxh4 c2 42. Be1 {[%emt 0:00:12]} c1=Q+ {
[%emt 0:00:12]} 43. Kf3 {[%emt 0:00:08]} Rc3+ {[%emt 0:00:06]} 44. Bxc3 {
[%emt 0:00:04]} Qxg1 {[%emt 0:00:03]} 0-1